[Event "German Bundesliga 2024-25"]
[Site "Germany"]
[Date "2025.01.12"]
[Round "6"]
[White "Firouzja, Alireza"]
[Black "Livaic, Leon"]
[Result "1/2-1/2"]
[Annotator "TA"]
[ECO "C41"]
[WhiteElo "2763"]
[BlackElo "2557"]
[PlyCount "49"]
[EventDate "2024.09.27"]
[EventType "team-tourn"]
[EventCountry "GER"]
[SourceTitle "playchess.com"]
[Source "ChessBase"]
[SourceQuality "1"]
[WhiteTeam "Baden-Baden"]
[BlackTeam "Heimbach-Weis-Neuwied"]
[TimeControl "40/5400+30:1800+30"]

{[%evp 15,49,34,32,28,21,28,36,-9,32,20,27,25,33,14,39,34,14,9,16,10,14,0,32,11,25,23,18,20,25,18,25,12,16,0,0,-69]} 1. e4 {[%emt 0:01:00]} d6 {[%emt 0:01:00]} 2. d4 {[%emt 0:00:00]} Nf6 {[%emt 0:00:00]} 3. Nc3 {[%emt 0:00:00]} e5 {[%emt 0:00:00]} 4. Nf3 {[%emt 0:00:30]} Nbd7 {[%emt 0:00:00]} 5. Bc4 {[%emt 0:00:00]} Be7 {[%emt 0:00:00]} 6. O-O {[%emt 0:00:00]} O-O {[%emt 0:00:00]} 7. h3 {[%emt 0:00:30]} c6 {[%emt 0:03:00]} 8. a4 {[%emt 0:00:30]} exd4 {[%emt 0:11:30]} 9. Qxd4 {[%emt 0:01:30]} Nc5 {[%emt 0:00:30][%cal Oc5e4]} 10. Rd1 {[%emt 0:03:30]} Be6 {[%emt 0:03:30]} 11. b4 {[%emt 0:12:30] White is slightly better.} (11. Bf4 $5) 11... Bxc4 {[%emt 0:04:30]} (11... Ncxe4 $5 12. Bxe6 (12. Nxe4 d5 $11) 12... Nxc3 13. Bxf7+ Rxf7 14. Qxc3 Nd5 $11) 12. Qxc4 {[%emt 0:01:30]} Ne6 {[%emt 0:02:30]} 13. Be3 {[%emt 0:09:30]} Re8 {[%emt 0:09:30]} 14. a5 {[%emt 0:03:30]} Qc8 {[%emt 0:10:30]} 15. Qb3 {[%emt 0:15:30]} Bf8 {[%emt 0:08:30]} 16. Nd2 {[%emt 0:04:30]} Nc7 {[%emt 0:05:30]} 17. Bd4 {[%emt 0:01:30]} Qe6 {[%emt 0:02:30]} 18. Rab1 {[%emt 0:05:30]} Nd7 {[%emt 0:06:30]} 19. b5 {[%emt 0:06:30]} Qxb3 {[%emt 0:05:30]} (19... Qg6 {seems wilder.} 20. a6 cxb5 21. axb7 Rab8) 20. Rxb3 {[%emt 0:00:30]} Ne6 {[%emt 0:01:30]} 21. Be3 {[%emt 0:00:30]} Ndc5 {[%emt 0:04:55]} 22. Rbb1 {[%emt 0:00:00]} g6 {[%emt 0:06:06]} 23. bxc6 {[%emt 0:02:00]} bxc6 {[%emt 0:00:04]} 24. Nc4 {[%emt 0:00:00]} Rad8 {[%emt 0:05:13]} 25. e5 {[%emt 0:02:00] Weighted Error Value: White=0.09 (flawless) /Black=0.07 (flawless) .  Mistake:       	White=1     	---        Inaccurate:     	White=1     	Black=2      OK:         	White=5     	Black=11} (25. Nb2 $11) 1/2-1/2

[Event "German Bundesliga 2024-25"]
[Site "Germany"]
[Date "2025.01.12"]
[Round "6"]
[White "Duda, Jan-Krzysztof"]
[Black "Bluebaum, Matthias"]
[Result "1/2-1/2"]
[Annotator "TA"]
[ECO "D35"]
[WhiteElo "2740"]
[BlackElo "2654"]
[PlyCount "232"]
[EventDate "2024.09.27"]
[EventType "team-tourn"]
[EventCountry "GER"]
[SourceTitle "playchess.com"]
[Source "ChessBase"]
[SourceQuality "1"]
[WhiteTeam "Viernheim"]
[BlackTeam "Deizisau"]
[TimeControl "40/5400+30:1800+30"]

{[%evp 172,232,69,69,69,8,8,8,8,8,8,8,8,8,8,8,8,8,8,8,8,98,8,8,8,8,8,8,24,8,8,8,8,8,8,8,8,8,8,8,8,8,8,8,8,8,8,8,8,8,8,8,8,8,8,8,8,0,8,8,8,8,8]} 1. d4 {[%emt 0:01:00]} d5 {[%emt 0:01:00]} 2. c4 {[%emt 0:00:00]} e6 {[%emt 0:00:00]} 3. Nc3 {[%emt 0:00:00]} Be7 {[%emt 0:00:00]} 4. cxd5 {[%emt 0:00:30]} exd5 {[%emt 0:00:30]} 5. Bf4 {[%emt 0:00:30]} Nf6 {[%emt 0:00:00]} 6. e3 {[%emt 0:00:30]} O-O {[%emt 0:01:00]} 7. Bd3 {[%emt 0:02:30]} c5 {[%emt 0:00:30]} 8. Nge2 {[%emt 0:07:30]} Nc6 {[%emt 0:00:00]} 9. O-O {[%emt 0:00:30]} Bg4 {[%emt 0:01:00]} 10. dxc5 {[%emt 0:14:30]} Bxc5 {[%emt 0:00:30]} 11. h3 {[%emt 0:01:30]} Bxe2 {[%emt 0:00:30]} 12. Qxe2 {[%emt 0:01:30]} d4 {[%emt 0:21:30]} 13. Ne4 {[%emt 0:07:30]} Nxe4 {[%emt 0:03:30]} 14. Bxe4 {[%emt 0:00:30]} Qe7 {[%emt 0:01:30]} 15. Bxc6 {[%emt 0:05:30]} bxc6 {[%emt 0:02:30]} 16. Rfe1 {[%emt 0:00:00]} Qf6 {[%emt 0:22:30]} 17. Qh5 {[%emt 0:30:00]} Bb4 {[%emt 0:06:30]} 18. Red1 {[%emt 0:00:30]} dxe3 {[%emt 0:06:30]} 19. Bxe3 {[%emt 0:01:30]} Qxb2 {[%emt 0:04:30]} 20. Rab1 {[%emt 0:01:30]} Qa3 {[%emt 0:02:30]} 21. Rb3 {[%emt 0:03:43]} Qa5 {[%emt 0:00:30]} 22. Qg4 {[%emt 0:00:18]} Be7 {[%emt 0:05:11]} 23. Bd4 {[%emt 0:08:35]} Qg5 {[%emt 0:02:09]} 24. Qe4 {[%emt 0:04:23]} Qh5 {[%emt 0:03:42]} 25. Re1 {[%emt 0:02:47]} Bd6 {[%emt 0:05:11]} 26. Qxc6 {[%emt 0:01:17]} Qg6 {[%emt 0:00:19]} 27. g3 {[%emt 0:01:03]} a5 {[%emt 0:01:19]} 28. Re4 {[%emt 0:02:07]} Rfc8 {[%emt 0:07:48]} 29. Qd5 {[%emt 0:00:33]} Bf8 {[%emt 0:00:03]} 30. Rb6 {[%emt 0:02:38]} Rc1+ {[%emt 0:00:15]} 31. Kg2 {[%emt 0:00:24]} Rd8 {[%emt 0:00:07]} 32. Qe5 {[%emt 0:00:37]} f6 {[%emt 0:00:28]} 33. Qe6+ {[%emt 0:00:16]} Qf7 {[%emt 0:01:03]} 34. Qxf7+ {[%emt 0:00:21]} Kxf7 {[%emt 0:00:01]} 35. Rb7+ {[%emt 0:00:10]} Kg8 {[%emt 0:00:14]} 36. Ra7 {[%emt 0:01:11]} f5 {[%emt 0:02:44]} 37. Rf4 {[%emt 0:00:37]} Rd5 {[%emt 0:00:04]} 38. Bb6 {[%emt 0:00:26]} Rc2 {[%emt 0:01:05]} 39. Rxa5 {[%emt 0:00:32]} Rxa5 {[%emt 0:00:09]} 40. Bxa5 {[%emt 0:00:03]} Rxa2 {[%emt 0:00:00]} 41. Rxf5 {[%emt 0:04:29]} Rc2 {[%emt 0:02:08]} 42. g4 {[%emt 0:03:30]} Bc5 {[%emt 0:02:30]} 43. Bd8 {[%emt 0:01:30]} h6 {[%emt 0:00:30]} 44. Bh4 {[%emt 0:02:30]} Bd6 {[%emt 0:00:30]} 45. Rd5 {[%emt 0:00:00]} Bf4 {[%emt 0:01:30]} 46. Be7 {[%emt 0:00:00]} Be3 {[%emt 0:01:30]} 47. Rf5 {[%emt 0:00:30]} Bd4 {[%emt 0:00:00]} 48. Bd6 {[%emt 0:04:42]} Rc6 {[%emt 0:02:00]} 49. Rd5 {[%emt 0:02:15]} Bf6 {[%emt 0:00:30]} 50. Bg3 {[%emt 0:00:53]} Rc4 {[%emt 0:00:00]} 51. Kf3 {[%emt 0:00:30]} Kf7 {[%emt 0:00:00]} 52. Rd7+ {[%emt 0:01:40]} Ke6 {[%emt 0:00:30]} 53. Ra7 {[%emt 0:01:15]} Rc3+ {[%emt 0:00:30]} 54. Kg2 {[%emt 0:00:05]} Rc4 {[%emt 0:00:30]} 55. Rb7 {[%emt 0:00:20]} Ra4 {[%emt 0:00:30]} 56. Bb8 {[%emt 0:01:55]} Ra2 {[%emt 0:01:30]} 57. Ba7 {[%emt 0:02:05]} Rb2 {[%emt 0:01:30]} 58. Rc7 {[%emt 0:00:22]} Rb5 {[%emt 0:02:30]} 59. Rc6+ {[%emt 0:02:31]} Kf7 {[%emt 0:00:30]} 60. Bc5 {[%emt 0:00:07]} Be7 {[%emt 0:01:30]} 61. Bd4 {[%emt 0:00:29]} h5 {[%emt 0:00:30]} 62. Rc7 {[%emt 0:00:55]} hxg4 {[%emt 0:00:30]} 63. hxg4 {[%emt 0:00:04]} Ke6 {[%emt 0:01:30]} 64. f4 {[%emt 0:03:01]} Bd6 {[%emt 0:06:28]} 65. f5+ {[%emt 0:02:09]} Kd5 {[%emt 0:00:01]} 66. Rd7 {[%emt 0:00:00]} Rb4 {[%emt 0:00:15]} 67. Bxg7 {[%emt 0:00:00]} Rxg4+ {[%emt 0:00:04]} 68. Kh3 {[%emt 0:00:19]} Rg5 {[%emt 0:01:00]} 69. Bf8 {[%emt 0:01:18]} Rxf5 {[%emt 0:00:06]} 70. Rxd6+ {[%emt 0:00:06]} Ke5 {[%emt 0:00:08]} 71. Rd8 {[%emt 0:00:08]} Rf1 {[%emt 0:00:18]} 72. Bd6+ {[%emt 0:00:21]} Ke4 {[%emt 0:00:32]} 73. Kg4 {[%emt 0:00:08]} Rd1 {[%emt 0:00:30]} 74. Re8+ {[%emt 0:00:07]} Kd5 {[%emt 0:00:07]} 75. Kf5 {[%emt 0:00:06]} Rh1 {[%emt 0:00:21]} 76. Bf4 {[%emt 0:00:21]} Rh5+ {[%emt 0:00:05]} 77. Bg5 {[%emt 0:00:06]} Rh1 {[%emt 0:00:23]} 78. Rd8+ {[%emt 0:00:06]} Kc4 {[%emt 0:00:09]} 79. Ke4 {[%emt 0:00:27]} Re1+ {[%emt 0:00:23]} 80. Be3 {[%emt 0:00:05]} Rh1 {[%emt 0:00:14]} 81. Rc8+ {[%emt 0:00:06]} Kb5 {[%emt 0:00:05]} 82. Bd4 {[%emt 0:01:04]} Rh4+ {[%emt 0:00:30]} 83. Kd5 {[%emt 0:00:06]} Rh5+ {[%emt 0:00:02]} 84. Be5 {[%emt 0:00:04]} Rg5 {[%emt 0:00:12]} 85. Rb8+ {[%emt 0:00:16]} Ka5 {[%emt 0:00:04]} 86. Rb1 {[%emt 0:00:36]} Rh5 {[%emt 0:00:04]} 87. Kd4 {[%emt 0:01:10]} Ka6 {[%emt 0:00:04]} 88. Bd6 {[%emt 0:00:53]} (88. Rb2 $14) 88... Rb5 $11 {[%emt 0:00:25]} 89. Rh1 {[%emt 0:00:57]} Rg5 {[%emt 0:00:34]} 90. Kc4 {[%emt 0:01:22]} Kb6 {[%emt 0:00:26]} 91. Rh6 {[%emt 0:00:08]} Rg2 {[%emt 0:02:29]} 92. Be5+ {[%emt 0:00:54]} Kb7 {[%emt 0:00:17]} 93. Kb5 $1 {[%emt 0:00:31]} Kc8 {[%emt 0:02:24]} ({But not} 93... Rg5 $6 94. Rh7+ Ka8 95. Re7 $16) 94. Rh7 {[%emt 0:00:42]} Rd2 {[%emt 0:01:57]} 95. Kc6 {[%emt 0:01:35]} Rd7 {[%emt 0:06:06]} 96. Rh8+ {[%emt 0:00:45]} Rd8 {[%emt 0:00:01]} 97. Rh1 {[%emt 0:00:06]} Rd7 {[%emt 0:00:10]} 98. Bd6 {[%emt 0:01:29]} Rc7+ $1 {[%emt 0:02:28]} 99. Kd5 {[%emt 0:00:19]} Rc2 {[%emt 0:02:43]} 100. Bc5 {[%emt 0:02:33]} Kd7 {[%emt 0:01:11]} 101. Rh7+ {[%emt 0:00:21]} Kd8 {[%emt 0:00:13]} 102. Kc6 {[%emt 0:00:58]} Re2 $1 {[%emt 0:00:05]} 103. Ra7 {[%emt 0:01:46]} Ke8 {[%emt 0:00:29]} 104. Bd6 {[%emt 0:00:15]} Re1 {[%emt 0:00:41]} 105. Kd5 {[%emt 0:00:16]} Kd8 {[%emt 0:00:11]} 106. Be5 {[%emt 0:00:36]} Rd1+ {[%emt 0:00:04]} 107. Ke6 {[%emt 0:00:04]} Rc1 {[%emt 0:00:08]} 108. Ra2 {[%emt 0:01:41]} Rc6+ {[%emt 0:01:24]} 109. Bd6 {[%emt 0:00:07]} Rc1 {[%emt 0:00:03]} (109... Kc8 110. Rb2 Kd8 (110... Ra6 111. Rb8#) 111. Kd5 $18) 110. Rh2 {[%emt 0:01:27]} Kc8 {[%emt 0:00:15]} 111. Rb2 {[%emt 0:00:40]} Kd8 $1 {[%emt 0:00:04]} 112. Rb8+ {[%emt 0:00:29]} Rc8 {[%emt 0:00:01]} 113. Rb1 {[%emt 0:00:06]} Rc2 {[%emt 0:00:09]} 114. Bf4 {[%emt 0:00:05]} Rc4 {[%emt 0:01:29]} 115. Rb8+ {[%emt 0:01:51]} Rc8 {[%emt 0:00:01]} 116. Rxc8+ {[%emt 0:00:26]} Kxc8 {[%emt 0:00:02]} 1/2-1/2

[Event "German Bundesliga 2024-25"]
[Site "Germany"]
[Date "2025.01.12"]
[Round "6"]
[White "Keymer, Vincent"]
[Black "Lodici, Lorenzo"]
[Result "1/2-1/2"]
[Annotator "TA"]
[ECO "A07"]
[WhiteElo "2733"]
[BlackElo "2574"]
[PlyCount "123"]
[EventDate "2024.09.27"]
[EventType "team-tourn"]
[EventCountry "GER"]
[SourceTitle "playchess.com"]
[Source "ChessBase"]
[SourceQuality "1"]
[WhiteTeam "Baden-Baden"]
[BlackTeam "Heimbach-Weis-Neuwied"]
[TimeControl "40/5400+30:1800+30"]

{[%evp 71,123,13,177,180,187,166,179,165,166,66,199,143,164,170,171,178,176,174,168,145,139,66,96,35,35,18,28,25,13,0,0,0,0,0,0,0,0,0,0,0,0,0,0,0,0,0,0,0,0,0,0,0,0,0]} 1. Nf3 {[%emt 0:01:00]} d5 {[%emt 0:01:00]} 2. g3 {[%emt 0:00:00]} Bg4 {[%emt 0:01:30]} 3. Bg2 {[%emt 0:00:00]} c6 {[%emt 0:00:00]} 4. h3 {[%emt 0:01:30]} Bh5 {[%emt 0:00:00]} 5. d4 {[%emt 0:01:30]} Nd7 {[%emt 0:01:30]} 6. c4 {[%emt 0:01:30]} e6 {[%emt 0:00:30]} 7. cxd5 {[%emt 0:01:30]} exd5 {[%emt 0:00:00]} 8. Nc3 {[%emt 0:01:30]} Ngf6 {[%emt 0:10:00]} 9. Ne5 {[%emt 0:04:30]} Nxe5 {[%emt 0:06:30]} 10. dxe5 {[%emt 0:00:00]} Nd7 {[%emt 0:00:30]} 11. O-O {[%emt 0:00:00]} Be7 {[%emt 0:05:30]} 12. f4 {[%emt 0:02:30]} f5 {[%emt 0:00:30]} 13. Be3 {[%emt 0:07:30]} Bc5 {[%emt 0:11:30]} 14. Bf2 {[%emt 0:17:30]} Rc8 {[%emt 0:11:30]} 15. Na4 {[%emt 0:12:30]} Bxf2+ {[%emt 0:01:30]} 16. Rxf2 {[%emt 0:00:00]} b5 {[%emt 0:05:30]} 17. Nc3 {[%emt 0:00:00]} Nc5 {[%emt 0:01:30]} 18. Qd4 {[%emt 0:17:30]} Qb6 {[%emt 0:02:30]} 19. Rc1 {[%emt 0:06:30]} O-O {[%emt 0:01:30]} 20. e3 {[%emt 0:03:30]} Ne6 {[%emt 0:06:30]} 21. Qxb6 {[%emt 0:07:05]} axb6 {[%emt 0:00:30]} 22. Rfc2 {[%emt 0:00:29]} Rcd8 {[%emt 0:00:30]} 23. Kf2 {[%emt 0:00:30]} Nc5 {[%emt 0:10:30]} 24. Rd2 {[%emt 0:01:21]} b4 {[%emt 0:02:54]} 25. Ne2 {[%emt 0:00:10]} Bxe2 {[%emt 0:02:16]} 26. Kxe2 {[%emt 0:00:30]} Ra8 {[%emt 0:00:35]} 27. Rd4 {[%emt 0:03:18]} Ra4 {[%emt 0:00:08]} 28. g4 {[%emt 0:03:01]} g6 {[%emt 0:01:26]} 29. gxf5 {[%emt 0:00:04]} gxf5 {[%emt 0:00:31]} 30. h4 {[%emt 0:00:05]} Kf7 {[%emt 0:01:08]} 31. Bh3 {[%emt 0:01:56]} Ke6 {[%emt 0:05:47]} 32. Rc2 {[%emt 0:00:05]} Rfa8 {[%emt 0:00:23]} 33. Kf3 {[%emt 0:05:38]} R8a6 {[%emt 0:01:20]} 34. Bf1 {[%emt 0:00:39]} Ra7 {[%emt 0:01:28]} 35. Bh3 {[%emt 0:00:53]} Rg7 {[%emt 0:04:31]} 36. b3 {[%emt 0:00:25]} (36. a3 $5 Ne4 37. Rxc6+ $16 (37. Rxb4 $2 Rg3+ 38. Ke2 $19)) 36... Ra8 $2 {[%emt 0:01:23]} (36... Ra5 $11 {and Black is okay.}) 37. Rxb4 $18 {[%emt 0:01:11]} Ne4 {[%emt 0:00:01]} 38. Ke2 $1 {[%emt 0:00:50]} (38. Rxb6 Rg3+ 39. Ke2 Rxh3 40. Rbxc6+ Kf7 $16) (38. Rxc6+ Kd7 39. Bxf5+ (39. Rd6+ Ke8 $17) 39... Kxc6 40. Rxe4 Rf8 $19) 38... Rg3 {[%emt 0:01:00]} 39. Bf1 {[%emt 0:00:01]} (39. Rxc6+ $2 Kd7 40. Rc2 Rxh3 41. Rxb6 Rh2+ (41... Rxh4 42. Rb7+ Kd8 43. Kd3 $11) 42. Kd1 Rxc2 (42... Rxa2 43. Rb7+ Kd8 44. Rb8+ Kd7 45. Rb7+ Kd8 46. Rb8+ Kd7 47. Rb7+ $11) (42... Rxh4 43. Kc1 $15) 43. Kxc2 Rxa2+ 44. Kd1 Nf2+ 45. Kc1 Ng4 46. Rd6+ Ke7 47. Rxd5 Nxe3 $19) 39... d4 {[%emt 0:01:49]} 40. exd4 {[%emt 0:01:10]} (40. Rxc6+ Kd7 (40... Kd5 $2 41. Rd6+ Nxd6 42. Rxd4+ Kc5 43. b4+ Kc6 44. Rxd6+ Kc7 45. Kf2 $18) 41. Rc2 Rxe3+ 42. Kd1 Nc3+ 43. Kd2 Ne4+ 44. Kd1 Nc3+ 45. Kd2 Ne4+ 46. Kd1 $11) (40. Rxd4 $18 c5 41. Ra4 Rxa4 42. bxa4) 40... Rg1 {[%emt 0:00:00]} (40... Nc3+ $2 41. Kd2 Ne4+ 42. Ke1 $16 (42. Kc1 $2 Rg1 $17)) (40... Kd5 $1 $14) 41. Rxc6+ {[%emt 0:25:17]} (41. Rxb6 $18 Ng3+ 42. Kf2 Rxf1+ 43. Kxg3) 41... Kd5 $16 {[%emt 0:03:20]} 42. Rc2 {[%emt 0:00:05]} (42. Rbxb6 Rxa2+ 43. Ke1 Ng3 (43... Kxd4 $2 44. Ra6 $19) (43... Ra1+ $2 44. Ke2 $19) (43... Rf2 $2 44. Rd6+ Nxd6 45. Rxd6+ Ke4 46. Kxf2 $18) 44. Rc5+ Ke4) 42... Ng3+ {[%emt 0:06:30]} 43. Kd3 $1 {[%emt 0:00:01]} (43. Kf2 Rxf1+ 44. Kxg3 Rg8+ 45. Kh2 Rxf4 $11) 43... Rxf1 {[%emt 0:02:30]} 44. Rb5+ {[%emt 0:00:01]} Ke6 {[%emt 0:00:30]} 45. Rxb6+ {[%emt 0:00:10]} Kf7 {[%emt 0:01:30] [#]} 46. Rc7+ {[%emt 0:00:57]} ({White should try} 46. Rf6+ $1 $16 Ke8 47. Rg2 (47. d5 Rd1+ 48. Ke3 Rxd5 $11) 47... Rf3+ 48. Kc4) 46... Kg8 $14 {[%emt 0:00:30] [#]} 47. Rbb7 {[%emt 0:04:07]} (47. a4 $1 $16) 47... Nh5 $14 {[%emt 0:03:48]} 48. Rxh7 {[%emt 0:00:05]} Nxf4+ {[%emt 0:00:08]} 49. Kc4 {[%emt 0:00:00]} Rc1+ {[%emt 0:01:45]} (49... Rxa2 50. Rbg7+ Kf8 51. Rd7 $14) 50. Kb4 {[%emt 0:01:19]} Nd5+ {[%emt 0:02:38]} 51. Kb5 {[%emt 0:00:01]} Nc3+ {[%emt 0:05:33]} 52. Kb6 {[%emt 0:00:01]} Nd5+ {[%emt 0:00:37]} 53. Kb5 {[%emt 0:00:01]} Nc3+ {[%emt 0:00:00]} 54. Kc6 {[%emt 0:01:03]} Ne2+ {[%emt 0:00:12]} 55. Kb6 $1 {[%emt 0:00:28]} (55. Kd6 $2 Ra6+ (55... Nxd4 56. Rhg7+ Kf8 57. Rbf7+ Ke8 58. Re7+ Kf8 59. Ref7+ Ke8 60. Re7+ Kf8 61. Ref7+ $11) 56. Ke7 Kxh7 $19) 55... Nxd4 {[%emt 0:00:01]} 56. Rbg7+ {[%emt 0:00:12]} Kf8 {[%emt 0:00:01]} 57. Rd7 {[%emt 0:02:24]} Rb8+ {[%emt 0:00:42]} 58. Ka6 {[%emt 0:00:03]} (58. Ka7 $5 Nc6+ $8 59. Ka6 $17) 58... Kg8 {[%emt 0:00:06]} 59. Rhg7+ {[%emt 0:01:01]} Kh8 {[%emt 0:01:49]} 60. Rh7+ {[%emt 0:02:34]} Kg8 {[%emt 0:00:01]} 61. Rdg7+ {[%emt 0:00:30]} Kf8 {[%emt 0:00:01]} 62. Rf7+ {[%emt 0:00:38]} ({But not} 62. Rh8+ $2 Kxg7 63. Rxb8 f4 $19) (62. Rd7 $5 Kg8 $8 $11) 1/2-1/2

[Event "German Bundesliga 2024-25"]
[Site "Germany"]
[Date "2025.01.12"]
[Round "6"]
[White "Rapport, Richard"]
[Black "Zilka, Stepan"]
[Result "1/2-1/2"]
[Annotator "TA"]
[ECO "C54"]
[WhiteElo "2721"]
[BlackElo "2539"]
[PlyCount "133"]
[EventDate "2024.09.27"]
[EventType "team-tourn"]
[EventCountry "GER"]
[SourceTitle "playchess.com"]
[Source "ChessBase"]
[SourceQuality "1"]
[WhiteTeam "Baden-Baden"]
[BlackTeam "Heimbach-Weis-Neuwied"]
[TimeControl "40/5400+30:1800+30"]

{[%evp 10,133,21,20,21,19,28,20,27,18,11,12,1,10,3,2,5,0,14,20,32,15,21,12,15,20,56,0,52,13,42,30,20,28,22,33,48,50,47,43,60,2,18,17,18,17,25,0,0,0,0,0,54,71,68,16,32,0,0,0,12,11,40,46,33,31,56,41,86,85,112,47,115,110,119,119,119,119,116,0,104,77,260,247,220,243,218,146,140,63,81,13,10,10,18,6,8,8,8,3,8,4,16,16,16,0,0,2,13,0,0,0,0,0,1,0,12,8,25,0,0,0,22,0,0,0]} 1. e4 {[%emt 0:01:00]} e5 {[%emt 0:01:00]} 2. Nf3 {[%emt 0:00:30]} Nc6 {[%emt 0:00:00]} 3. Bc4 {[%emt 0:00:30]} Bc5 {[%emt 0:00:00]} 4. c3 {[%emt 0:01:30]} Nf6 {[%emt 0:00:30]} 5. d3 {[%emt 0:00:30]} a6 {[%emt 0:00:00]} 6. Nbd2 {[%emt 0:03:30]} Ba7 {[%emt 0:05:00]} 7. O-O {[%emt 0:02:30]} O-O {[%emt 0:01:30]} 8. Re1 {[%emt 0:00:30]} d6 {[%emt 0:00:30]} 9. Nf1 {[%emt 0:00:30]} Na5 {[%emt 0:02:30]} 10. Bb3 {[%emt 0:00:30]} Nxb3 {[%emt 0:00:30]} 11. axb3 {[%emt 0:00:30]} h6 {[%emt 0:02:30]} 12. Ng3 {[%emt 0:02:30]} Re8 {[%emt 0:02:30]} 13. h3 {[%emt 0:03:30]} Nh7 {[%emt 0:10:30]} 14. d4 {[%emt 0:08:30]} Ng5 {[%emt 0:13:30]} 15. Nxg5 {[%emt 0:09:30]} hxg5 {[%emt 0:00:30]} 16. Be3 {[%emt 0:02:30]} (16. Qh5 {is more complex.} f6 17. d5 Qd7 18. Be3) 16... f6 {[%emt 0:07:30]} 17. b4 {[%emt 0:01:30]} Be6 {[%emt 0:14:30]} 18. Qd3 {[%emt 0:13:30]} (18. b5 $14) 18... Bb6 {[%emt 0:01:30]} ({Better is} 18... exd4 $11 19. Bxd4 (19. cxd4 d5 $11) 19... c5) 19. Rad1 {[%emt 0:08:30]} Qe7 {[%emt 0:05:30]} 20. dxe5 {[%emt 0:05:30]} dxe5 {[%emt 0:00:30]} 21. Bxb6 {[%emt 0:00:30]} cxb6 {[%emt 0:00:30]} 22. Qd6 {[%emt 0:00:00]} Qxd6 {[%emt 0:01:30]} 23. Rxd6 {[%emt 0:00:00]} b5 {[%emt 0:00:30]} 24. Red1 {[%emt 0:04:30] Black is weak on the dark squares} Kf7 {[%emt 0:02:30]} 25. Nf1 {[%emt 0:05:30]} (25. Nf5 $14) 25... Rac8 {[%emt 0:02:30]} 26. Ne3 {[%emt 0:03:30]} Rc6 {[%emt 0:02:30]} 27. R6d3 {[%emt 0:00:30]} Ke7 {[%emt 0:04:28]} 28. Kh2 {[%emt 0:01:30]} Rcc8 {[%emt 0:03:57]} 29. Kg3 {[%emt 0:01:54]} Rh8 {[%emt 0:00:38]} 30. Rd6 {[%emt 0:03:46]} Rc6 {[%emt 0:00:32]} (30... Rhd8 $11 31. Rb6 Rxd1 32. Nxd1 Rc7) 31. Rxc6 $14 {[%emt 0:05:58]} bxc6 {[%emt 0:00:30][%mdl 4096] Endgame KRB-KRN} 32. Ra1 {[%emt 0:00:57]} (32. Nf5+ $14 Kf7 (32... Bxf5 33. exf5 Rh4 34. Ra1 $16) 33. Nd6+ Ke7 34. Nb7) 32... Ra8 $11 {[%emt 0:00:30]} 33. h4 {[%emt 0:02:15]} gxh4+ {[%emt 0:00:30]} 34. Kxh4 {[%emt 0:00:02]} g6 {[%emt 0:01:07]} 35. Kg3 {[%emt 0:01:15]} f5 {[%emt 0:00:26]} 36. exf5 {[%emt 0:01:06]} gxf5 {[%emt 0:00:47]} 37. f4 $1 {[%emt 0:00:05]} Kf6 {[%emt 0:04:16]} 38. Rh1 {[%emt 0:00:33]} Rg8+ {[%emt 0:01:11]} 39. Kf3 {[%emt 0:00:09]} e4+ {[%emt 0:03:34]} 40. Ke2 {[%emt 0:03:02]} (40. Kf2 $16) 40... Ke7 {[%emt 0:00:00]} (40... Kg6 $14) 41. Kf2 $16 {[%emt 0:11:28]} Rd8 {[%emt 0:03:04]} 42. Rh7+ {[%emt 0:00:30]} Kf6 {[%emt 0:00:30]} 43. Rh6+ {[%emt 0:02:30]} Ke7 {[%emt 0:00:30]} 44. Rh7+ {[%emt 0:00:30]} Kf6 {[%emt 0:00:00]} 45. Ke2 {[%emt 0:00:30]} Bf7 $2 {[%emt 0:03:00]} (45... Ra8 $16) 46. Rh6+ $18 {[%emt 0:03:40]} Bg6 {[%emt 0:00:30] [#]} 47. g4 $1 {[%emt 0:00:20]} Kg7 {[%emt 0:00:00] Prevents gxf5} 48. Rh4 {[%emt 0:05:39]} (48. Nxf5+ $2 Bxf5 49. Rh4 Bh7 $19) 48... fxg4 {[%emt 0:01:00]} 49. f5 {[%emt 0:00:06]} ({White should play} 49. Nxg4 $16 Bf7 50. Ke3) 49... Bf7 $14 {[%emt 0:00:00]} 50. Rxg4+ {[%emt 0:00:14]} (50. Nxg4 $16 {Black must now prevent Ke3.} Rd5 51. Ne3) 50... Kf6 $11 {[%emt 0:00:00] ...Bh5 is the strong threat.} 51. Rxe4 {[%emt 0:00:08]} Bh5+ {[%emt 0:00:30]} 52. Ke1 {[%emt 0:00:42]} Kg5 {[%emt 0:00:30]} 53. Re6 {[%emt 0:03:40]} Bf3 {[%emt 0:10:30]} 54. f6 {[%emt 0:03:42] White wants to play Kf2.} Rf8 {[%emt 0:01:30]} 55. Kf2 {[%emt 0:01:28]} Bh1 {[%emt 0:00:00]} 56. Re5+ {[%emt 0:06:06]} Kxf6 {[%emt 0:00:00]} 57. Ng4+ {[%emt 0:00:18]} Kg6+ {[%emt 0:00:30]} 58. Ke3 {[%emt 0:00:06]} Rf3+ {[%emt 0:00:30]} 59. Ke2 {[%emt 0:00:16]} Rg3 {[%emt 0:02:30]} 60. Ne3 {[%emt 0:00:36]} Kf6 {[%emt 0:02:30]} 61. Re8 {[%emt 0:00:27]} Kf7 {[%emt 0:00:30]} 62. Ra8 {[%emt 0:00:41]} Be4 {[%emt 0:00:00]} 63. Rxa6 {[%emt 0:01:14]} Rh3 {[%emt 0:00:00]} 64. Kf2 {[%emt 0:01:28]} Rf3+ {[%emt 0:00:30]} 65. Ke2 {[%emt 0:00:02]} Rh3 {[%emt 0:00:30]} 66. Kf2 {[%emt 0:00:04]} Rf3+ {[%emt 0:00:00]} 67. Ke2 {[%emt 0:00:00]} 1/2-1/2